[Event "Titled Tuesday Blitz January 10 Early 2023"]
[White "Dardha, Daniel"]
[Black "Klose, Eli"]
[WhiteFideId "240990"]
[BlackFideId "16242955"]
[WhiteElo "2631"]
[BlackElo "1519"]
[Result "1-0"]
[Round "05"]
[TimeControl "180+2"]
[Date "2023.01.10"]
[WhiteClock "0:00:20"]
[BlackClock "0:00:10"]

1. Nf3 {[%clk 0:02:58]}  Nf6 {[%clk 0:02:59]} 2. e3 {[%clk 0:02:58]}  c5 {[%clk 0:02:40]} 3. c4 {[%clk 0:02:56]}  Nc6 {[%clk 0:02:40]} 4. b3 {[%clk 0:02:50]}  g6 {[%clk 0:02:39]} 5. Bb2 {[%clk 0:02:50]}  Bg7 {[%clk 0:02:40]} 6. Be2 {[%clk 0:02:49]}  O-O {[%clk 0:02:39]} 7. O-O {[%clk 0:02:49]}  Rb8 {[%clk 0:02:37]} 8. d4 {[%clk 0:02:44]}  cxd4 {[%clk 0:02:37]} 9. Nxd4 {[%clk 0:02:44]}  d6 {[%clk 0:02:37]} 10. Nc3 {[%clk 0:02:42]}  Bd7 {[%clk 0:02:37]} 11. Rc1 {[%clk 0:02:37]}  Qa5 {[%clk 0:02:36]} 12. Nf3 {[%clk 0:02:35]}  Rfe8 {[%clk 0:02:35]} 13. Qd2 {[%clk 0:02:33]}  a6 {[%clk 0:02:33]} 14. Rfd1 {[%clk 0:02:28]}  b5 {[%clk 0:02:18]} 15. Nd5 {[%clk 0:02:24]}  Qxd2 {[%clk 0:02:17]} 16. Rxd2 {[%clk 0:02:22]}  Ne4 {[%clk 0:01:06]} 17. Rdc2 {[%clk 0:02:20]}  Bxb2 {[%clk 0:01:06]} 18. Rxb2 {[%clk 0:02:21]}  Rec8 {[%clk 0:00:59]} 19. cxb5 {[%clk 0:02:19]}  axb5 {[%clk 0:00:59]} 20. Rxc6 {[%clk 0:02:19]}  Rxc6 {[%clk 0:00:52]} 21. Nxe7+ {[%clk 0:02:19]}  Kf8 {[%clk 0:00:53]} 22. Nxc6 {[%clk 0:02:20]}  Bxc6 {[%clk 0:00:53]} 23. Nd4 {[%clk 0:02:21]}  Bd7 {[%clk 0:00:53]} 24. b4 {[%clk 0:02:13]}  Nc3 {[%clk 0:00:48]} 25. Rc2 {[%clk 0:02:01]}  Nxe2+ {[%clk 0:00:48]} 26. Nxe2 {[%clk 0:02:02]}  Ra8 {[%clk 0:00:46]} 27. Nd4 {[%clk 0:02:01]}  Ra4 {[%clk 0:00:44]} 28. Rb2 {[%clk 0:02:01]}  Ra3 {[%clk 0:00:43]} 29. Kf1 {[%clk 0:01:57]}  Be6 {[%clk 0:00:40]} 30. Ke1 {[%clk 0:01:47]}  Bc4 {[%clk 0:00:34]} 31. Kd2 {[%clk 0:01:48]}  Ke7 {[%clk 0:00:34]} 32. Nc2 {[%clk 0:01:46]}  Ra8 {[%clk 0:00:30]} 33. a3 {[%clk 0:01:44]}  f5 {[%clk 0:00:29]} 34. h4 {[%clk 0:01:40]}  Ke6 {[%clk 0:00:29]} 35. Rb1 {[%clk 0:01:39]}  h6 {[%clk 0:00:29]} 36. Kc3 {[%clk 0:01:39]}  Ke5 {[%clk 0:00:24]} 37. f3 {[%clk 0:01:37]}  g5 {[%clk 0:00:23]} 38. hxg5 {[%clk 0:01:36]}  hxg5 {[%clk 0:00:24]} 39. Rh1 {[%clk 0:01:37]}  Rc8 {[%clk 0:00:23]} 40. Kb2 {[%clk 0:01:37]}  Bd3 {[%clk 0:00:20]} 41. Ne1 {[%clk 0:01:21]}  Be2 {[%clk 0:00:20]} 42. Rh7 {[%clk 0:01:14]}  f4 {[%clk 0:00:19]} 43. exf4+ {[%clk 0:01:04]}  Kxf4 {[%clk 0:00:20]} 44. Re7 {[%clk 0:01:03]}  Bf1 {[%clk 0:00:19]} 45. Re4+ {[%clk 0:00:58]}  Kg3 {[%clk 0:00:18]} 46. Rg4+ {[%clk 0:00:53]}  Kf2 {[%clk 0:00:18]} 47. Nc2 {[%clk 0:00:54]}  Bd3 {[%clk 0:00:19]} 48. Na1 {[%clk 0:00:41]}  Rg8 {[%clk 0:00:11]} 49. Nb3 {[%clk 0:00:41]}  Bf5 {[%clk 0:00:09]} 50. Rd4 {[%clk 0:00:34]}  Kxg2 {[%clk 0:00:10]} 51. Nd2 {[%clk 0:00:34]}  Rg6 {[%clk 0:00:08]} 52. Rd5 {[%clk 0:00:34]}  Bd7 {[%clk 0:00:08]} 53. Ne4 {[%clk 0:00:34]}  Kxf3 {[%clk 0:00:07]} 54. Nxg5+ {[%clk 0:00:32]}  Ke3 {[%clk 0:00:06]} 55. Kc3 {[%clk 0:00:26]}  Bc6 {[%clk 0:00:06]} 56. Rd3+ {[%clk 0:00:26]}  Kf4 {[%clk 0:00:06]} 57. Nf7 {[%clk 0:00:25]}  d5 {[%clk 0:00:04]} 58. Kd4 {[%clk 0:00:25]}  Re6 {[%clk 0:00:04]} 59. Rf3+ {[%clk 0:00:19]}  Kxf3 {[%clk 0:00:04]} 60. Ng5+ {[%clk 0:00:19]}  Kf4 {[%clk 0:00:04]} 61. Nxe6+ {[%clk 0:00:20]}  Kf5 {[%clk 0:00:05]} 62. Nc7 {[%clk 0:00:20]}  Kf6 {[%clk 0:00:05]} 63. Nxd5+ {[%clk 0:00:20]}  Ke6 {[%clk 0:00:05]} 64. Nc3 {[%clk 0:00:17]}  Kd6 {[%clk 0:00:06]} 65. Ne4+ {[%clk 0:00:17]}  Kc7 {[%clk 0:00:06]} 66. Ng5 {[%clk 0:00:17]}  Kb6 {[%clk 0:00:06]} 67. Ke5 {[%clk 0:00:16]}  Be8 {[%clk 0:00:06]} 68. Kd6 {[%clk 0:00:17]}  Bg6 {[%clk 0:00:06]} 69. Ne6 {[%clk 0:00:18]}  Bc2 {[%clk 0:00:07]} 70. Nf4 {[%clk 0:00:18]}  Ba4 {[%clk 0:00:07]} 71. Nd5+ {[%clk 0:00:19]}  Ka6 {[%clk 0:00:07]} 72. Kc6 {[%clk 0:00:19]}  Bd1 {[%clk 0:00:07]} 73. Nc7+ {[%clk 0:00:20]}  Ka7 {[%clk 0:00:07]} 74. Nxb5+ {[%clk 0:00:21]}  Ka6 {[%clk 0:00:08]} 75. Kc5 {[%clk 0:00:21]}  Be2 {[%clk 0:00:08]} 76. Nc7+ {[%clk 0:00:20]}  Kb7 {[%clk 0:00:08]} 77. Nd5 {[%clk 0:00:21]}  Bd1 {[%clk 0:00:08]} 78. b5 {[%clk 0:00:21]}  Be2 {[%clk 0:00:08]} 79. a4 {[%clk 0:00:21]}  Bd1 {[%clk 0:00:08]} 80. a5 {[%clk 0:00:21]}  Be2 {[%clk 0:00:09]} 81. Nc3 {[%clk 0:00:20]}  Ka7 {[%clk 0:00:10]} 82. Nxe2 {[%clk 0:00:20]} 1-0


[Site "https://www.chess.com"]

[Event "Titled Tuesday Blitz January 10 Early 2023"]
[White "Maksimenko, Viktor"]
[Black "Molina, Roberto Junio Brito"]
[WhiteFideId "13710478"]
[BlackFideId "2109450"]
[WhiteElo "2196"]
[BlackElo "2403"]
[Result "0-1"]
[Round "05"]
[TimeControl "180+2"]
[Date "2023.01.10"]
[WhiteClock "0:00:03"]
[BlackClock "0:00:13"]

1. d4 {[%clk 0:03:00]}  d5 {[%clk 0:02:58]} 2. c4 {[%clk 0:03:01]}  c6 {[%clk 0:02:58]} 3. Nf3 {[%clk 0:03:00]}  Nf6 {[%clk 0:02:58]} 4. e3 {[%clk 0:03:00]}  Bf5 {[%clk 0:02:57]} 5. Nc3 {[%clk 0:02:55]}  e6 {[%clk 0:02:56]} 6. Nh4 {[%clk 0:02:53]}  Bg6 {[%clk 0:02:55]} 7. Nxg6 {[%clk 0:02:49]}  hxg6 {[%clk 0:02:55]} 8. Rb1 {[%clk 0:02:50]}  a5 {[%clk 0:02:51]} 9. Bd3 {[%clk 0:02:34]}  Nbd7 {[%clk 0:02:47]} 10. h3 {[%clk 0:02:33]}  Bd6 {[%clk 0:02:44]} 11. O-O {[%clk 0:02:33]}  O-O {[%clk 0:02:43]} 12. a3 {[%clk 0:02:31]}  Re8 {[%clk 0:02:39]} 13. c5 {[%clk 0:02:23]}  Bc7 {[%clk 0:02:36]} 14. f4 {[%clk 0:02:24]}  b6 {[%clk 0:02:34]} 15. b4 {[%clk 0:02:24]}  axb4 {[%clk 0:02:34]} 16. axb4 {[%clk 0:02:24]}  bxc5 {[%clk 0:02:28]} 17. bxc5 {[%clk 0:02:25]}  Nh7 {[%clk 0:02:17]} 18. Bd2 {[%clk 0:02:21]}  f5 {[%clk 0:02:15]} 19. Qe2 {[%clk 0:02:04]}  g5 {[%clk 0:02:14]} 20. Rb7 {[%clk 0:01:46]}  gxf4 {[%clk 0:02:08]} 21. exf4 {[%clk 0:01:44]}  Nhf6 {[%clk 0:02:07]} 22. Kh1 {[%clk 0:01:02]}  Kf7 {[%clk 0:01:48]} 23. Re1 {[%clk 0:00:55]}  g6 {[%clk 0:01:45]} 24. Bc2 {[%clk 0:00:46]}  Qc8 {[%clk 0:01:41]} 25. Rb3 {[%clk 0:00:45]}  Nf8 {[%clk 0:01:34]} 26. g4 {[%clk 0:00:40]}  fxg4 {[%clk 0:01:20]} 27. hxg4 {[%clk 0:00:41]}  N8d7 {[%clk 0:01:18]} 28. Kg2 {[%clk 0:00:36]}  Nf8 {[%clk 0:01:10]} 29. Nd1 {[%clk 0:00:36]}  Ra2 {[%clk 0:01:03]} 30. Nf2 {[%clk 0:00:37]}  Rxc2 {[%clk 0:01:01]} 31. Qd1 {[%clk 0:00:21]}  Rc4 {[%clk 0:00:58]} 32. Be3 {[%clk 0:00:16]}  Re7 {[%clk 0:00:55]} 33. Qf3 {[%clk 0:00:16]}  Qa6 {[%clk 0:00:54]} 34. Nd3 {[%clk 0:00:16]}  Ne4 {[%clk 0:00:53]} 35. Ne5+ {[%clk 0:00:15]}  Bxe5 {[%clk 0:00:52]} 36. fxe5+ {[%clk 0:00:16]}  Kg8 {[%clk 0:00:51]} 37. Rf1 {[%clk 0:00:16]}  Qc8 {[%clk 0:00:46]} 38. Bh6 {[%clk 0:00:15]}  Nh7 {[%clk 0:00:44]} 39. Kh1 {[%clk 0:00:13]}  Ra4 {[%clk 0:00:37]} 40. Rb2 {[%clk 0:00:14]}  Raa7 {[%clk 0:00:35]} 41. Qh3 {[%clk 0:00:08]}  Rf7 {[%clk 0:00:34]} 42. Rfb1 {[%clk 0:00:07]}  Rab7 {[%clk 0:00:26]} 43. Kg1 {[%clk 0:00:06]}  Rxb2 {[%clk 0:00:24]} 44. Rxb2 {[%clk 0:00:07]}  Rb7 {[%clk 0:00:25]} 45. Qg2 {[%clk 0:00:04]}  Qb8 {[%clk 0:00:21]} 46. Re2 {[%clk 0:00:03]}  Rb1+ {[%clk 0:00:20]} 47. Kh2 {[%clk 0:00:04]}  Qd8 {[%clk 0:00:20]} 48. Kh3 {[%clk 0:00:02]}  Nhg5+ {[%clk 0:00:20]} 49. Kh2 {[%clk 0:00:02]}  Nf3+ {[%clk 0:00:15]} 50. Qxf3 {[%clk 0:00:03]}  Qh4+ {[%clk 0:00:14]} 51. Qh3 {[%clk 0:00:03]}  Rh1+ {[%clk 0:00:13]} 0-1


[Site "https://www.chess.com"]

[Event "Titled Tuesday Blitz January 10 Early 2023"]
[White "Melian, Juan Sebastian"]
[Black "Makarian, Rudik"]
[WhiteFideId "3706575"]
[BlackFideId "44105681"]
[WhiteElo "2293"]
[BlackElo "2545"]
[Result "0-1"]
[Round "05"]
[TimeControl "180+2"]
[Date "2023.01.10"]
[WhiteClock "0:00:26"]
[BlackClock "0:01:09"]

1. d4 {[%clk 0:03:00]}  Nf6 {[%clk 0:02:55]} 2. c4 {[%clk 0:03:00]}  e6 {[%clk 0:02:55]} 3. Nc3 {[%clk 0:03:00]}  Bb4 {[%clk 0:02:51]} 4. e3 {[%clk 0:03:00]}  O-O {[%clk 0:02:48]} 5. Ne2 {[%clk 0:02:59]}  c6 {[%clk 0:02:46]} 6. a3 {[%clk 0:02:56]}  Ba5 {[%clk 0:02:46]} 7. Ng3 {[%clk 0:02:48]}  d5 {[%clk 0:02:44]} 8. Bd2 {[%clk 0:02:35]}  Re8 {[%clk 0:02:41]} 9. Bd3 {[%clk 0:02:32]}  Nbd7 {[%clk 0:02:37]} 10. cxd5 {[%clk 0:02:32]}  exd5 {[%clk 0:02:35]} 11. O-O {[%clk 0:02:32]}  Nf8 {[%clk 0:02:31]} 12. Re1 {[%clk 0:02:30]}  Bc7 {[%clk 0:02:27]} 13. b4 {[%clk 0:02:16]}  a6 {[%clk 0:02:27]} 14. a4 {[%clk 0:02:16]}  Ng6 {[%clk 0:02:19]} 15. b5 {[%clk 0:02:13]}  axb5 {[%clk 0:02:03]} 16. axb5 {[%clk 0:02:13]}  Rxa1 {[%clk 0:02:03]} 17. Qxa1 {[%clk 0:02:13]}  Ng4 {[%clk 0:02:02]} 18. Nce2 {[%clk 0:01:43]}  Qh4 {[%clk 0:01:38]} 19. h3 {[%clk 0:01:30]}  Nf6 {[%clk 0:01:37]} 20. Nf5 {[%clk 0:01:14]}  Bxf5 {[%clk 0:01:15]} 21. Bxf5 {[%clk 0:01:14]}  Ne4 {[%clk 0:01:16]} 22. Bxe4 {[%clk 0:01:06]}  Qxe4 {[%clk 0:01:17]} 23. bxc6 {[%clk 0:01:00]}  Nh4 {[%clk 0:01:13]} 24. f3 {[%clk 0:00:51]}  Qg6 {[%clk 0:01:13]} 25. g4 {[%clk 0:00:36]}  Nxf3+ {[%clk 0:01:13]} 26. Kf2 {[%clk 0:00:35]}  Nxd2 {[%clk 0:01:10]} 27. cxb7 {[%clk 0:00:26]}  Qf6+ {[%clk 0:01:09]} 0-1


[Site "https://www.chess.com"]

[Event "Titled Tuesday Blitz January 10 Early 2023"]
[White "Tan, Zhongyi"]
[Black "Gurevich, Dmitry"]
[WhiteFideId "8603642"]
[BlackFideId "2000407"]
[WhiteElo "2517"]
[BlackElo "2393"]
[Result "0-1"]
[Round "05"]
[TimeControl "180+2"]
[Date "2023.01.10"]
[WhiteClock "0:00:08"]
[BlackClock "0:00:33"]

1. e4 {[%clk 0:03:00]}  c5 {[%clk 0:02:59]} 2. Nf3 {[%clk 0:02:59]}  d6 {[%clk 0:02:59]} 3. Bb5+ {[%clk 0:02:58]}  Bd7 {[%clk 0:02:58]} 4. Bxd7+ {[%clk 0:02:57]}  Qxd7 {[%clk 0:02:58]} 5. O-O {[%clk 0:02:56]}  Nc6 {[%clk 0:02:57]} 6. c3 {[%clk 0:02:55]}  Nf6 {[%clk 0:02:56]} 7. Re1 {[%clk 0:02:54]}  e6 {[%clk 0:02:56]} 8. d4 {[%clk 0:02:53]}  cxd4 {[%clk 0:02:56]} 9. cxd4 {[%clk 0:02:54]}  d5 {[%clk 0:02:57]} 10. e5 {[%clk 0:02:55]}  Ne4 {[%clk 0:02:57]} 11. Re3 {[%clk 0:02:52]}  Be7 {[%clk 0:02:52]} 12. Nc3 {[%clk 0:02:52]}  Nxc3 {[%clk 0:02:51]} 13. bxc3 {[%clk 0:02:51]}  Rc8 {[%clk 0:02:49]} 14. Ne1 {[%clk 0:02:50]}  Na5 {[%clk 0:02:46]} 15. Rg3 {[%clk 0:02:43]}  g6 {[%clk 0:02:45]} 16. Bh6 {[%clk 0:02:39]}  Rg8 {[%clk 0:02:41]} 17. Rc1 {[%clk 0:02:37]}  b5 {[%clk 0:02:26]} 18. Nd3 {[%clk 0:02:34]}  Nc4 {[%clk 0:02:19]} 19. Bg5 {[%clk 0:02:21]}  h5 {[%clk 0:02:15]} 20. Bxe7 {[%clk 0:02:18]}  Qxe7 {[%clk 0:02:14]} 21. Qe2 {[%clk 0:01:53]}  a6 {[%clk 0:02:10]} 22. h3 {[%clk 0:01:49]}  Kd7 {[%clk 0:02:04]} 23. Nc5+ {[%clk 0:01:48]}  Rxc5 {[%clk 0:02:04]} 24. dxc5 {[%clk 0:01:48]}  Qxc5 {[%clk 0:02:04]} 25. Rf3 {[%clk 0:01:47]}  Ke7 {[%clk 0:01:57]} 26. Rf4 {[%clk 0:01:43]}  g5 {[%clk 0:01:47]} 27. Rf6 {[%clk 0:01:42]}  g4 {[%clk 0:01:47]} 28. hxg4 {[%clk 0:01:39]}  hxg4 {[%clk 0:01:46]} 29. g3 {[%clk 0:01:33]}  Rg5 {[%clk 0:01:43]} 30. Rh6 {[%clk 0:01:23]}  Nxe5 {[%clk 0:01:37]} 31. Rh8 {[%clk 0:01:20]}  Rf5 {[%clk 0:01:32]} 32. Kg2 {[%clk 0:01:10]}  Rxf2+ {[%clk 0:01:21]} 33. Qxf2 {[%clk 0:01:09]}  Qxf2+ {[%clk 0:01:21]} 34. Kxf2 {[%clk 0:01:09]}  Nd3+ {[%clk 0:01:22]} 35. Ke3 {[%clk 0:01:09]}  Nxc1 {[%clk 0:01:22]} 36. a3 {[%clk 0:01:07]}  Nb3 {[%clk 0:01:18]} 37. Ra8 {[%clk 0:01:05]}  Nc5 {[%clk 0:01:13]} 38. Kd4 {[%clk 0:01:05]}  Nb3+ {[%clk 0:01:08]} 39. Ke3 {[%clk 0:01:05]}  Nc5 {[%clk 0:01:05]} 40. Ra7+ {[%clk 0:01:04]}  Kf6 {[%clk 0:01:01]} 41. Kd4 {[%clk 0:01:00]}  Ne4 {[%clk 0:00:57]} 42. Rxa6 {[%clk 0:00:56]}  Nxg3 {[%clk 0:00:57]} 43. Ke3 {[%clk 0:00:49]}  Ne4 {[%clk 0:00:55]} 44. Rc6 {[%clk 0:00:42]}  Ke5 {[%clk 0:00:53]} 45. Rc8 {[%clk 0:00:32]}  f5 {[%clk 0:00:52]} 46. Kd3 {[%clk 0:00:25]}  f4 {[%clk 0:00:50]} 47. Rg8 {[%clk 0:00:23]}  f3 {[%clk 0:00:46]} 48. Ke3 {[%clk 0:00:21]}  f2 {[%clk 0:00:43]} 49. Ke2 {[%clk 0:00:19]}  g3 {[%clk 0:00:42]} 50. Kf1 {[%clk 0:00:17]}  Kf4 {[%clk 0:00:40]} 51. Kg2 {[%clk 0:00:17]}  Ke3 {[%clk 0:00:38]} 52. Rf8 {[%clk 0:00:12]}  Ke2 {[%clk 0:00:38]} 53. Rf4 {[%clk 0:00:09]}  Nxc3 {[%clk 0:00:34]} 54. Kxg3 {[%clk 0:00:08]}  f1=Q {[%clk 0:00:33]} 0-1


[Site "https://www.chess.com"]

[Event "Titled Tuesday Blitz January 10 Early 2023"]
[White "Krysa, Leandro"]
[Black "Buksa, Nataliya"]
[WhiteFideId "116807"]
[BlackFideId "14123622"]
[WhiteElo "2541"]
[BlackElo "2406"]
[Result "1/2-1/2"]
[Round "05"]
[TimeControl "180+2"]
[Date "2023.01.10"]
[WhiteClock "0:00:09"]
[BlackClock "0:00:11"]

1. e4 {[%clk 0:03:00]}  c5 {[%clk 0:02:50]} 2. Nf3 {[%clk 0:03:00]}  Nc6 {[%clk 0:02:50]} 3. d4 {[%clk 0:03:00]}  cxd4 {[%clk 0:02:50]} 4. Nxd4 {[%clk 0:03:00]}  e5 {[%clk 0:02:51]} 5. Nb5 {[%clk 0:02:59]}  d6 {[%clk 0:02:51]} 6. c4 {[%clk 0:02:59]}  Be7 {[%clk 0:02:50]} 7. N1c3 {[%clk 0:02:55]}  a6 {[%clk 0:02:49]} 8. Na3 {[%clk 0:02:55]}  f5 {[%clk 0:02:50]} 9. exf5 {[%clk 0:02:53]}  Bxf5 {[%clk 0:02:50]} 10. Bd3 {[%clk 0:02:53]}  Be6 {[%clk 0:02:51]} 11. O-O {[%clk 0:02:51]}  Nf6 {[%clk 0:02:51]} 12. Nc2 {[%clk 0:02:41]}  O-O {[%clk 0:02:50]} 13. Bg5 {[%clk 0:02:34]}  Qd7 {[%clk 0:02:49]} 14. Rc1 {[%clk 0:02:23]}  Rae8 {[%clk 0:02:48]} 15. b3 {[%clk 0:02:21]}  Kh8 {[%clk 0:02:45]} 16. b4 {[%clk 0:01:59]}  Ng4 {[%clk 0:02:22]} 17. Bxe7 {[%clk 0:01:54]}  Qxe7 {[%clk 0:02:23]} 18. h3 {[%clk 0:01:54]}  Nf6 {[%clk 0:02:22]} 19. b5 {[%clk 0:01:47]}  axb5 {[%clk 0:02:21]} 20. cxb5 {[%clk 0:01:43]}  Nb8 {[%clk 0:02:16]} 21. f4 {[%clk 0:01:20]}  Nbd7 {[%clk 0:02:09]} 22. Qe2 {[%clk 0:01:03]}  Rc8 {[%clk 0:02:04]} 23. fxe5 {[%clk 0:00:59]}  Nxe5 {[%clk 0:01:53]} 24. Ne3 {[%clk 0:00:39]}  d5 {[%clk 0:01:46]} 25. Nf5 {[%clk 0:00:30]}  Qc5+ {[%clk 0:01:13]} 26. Kh1 {[%clk 0:00:26]}  Nxd3 {[%clk 0:00:54]} 27. Qxd3 {[%clk 0:00:26]}  Ne4 {[%clk 0:00:36]} 28. Nxe4 {[%clk 0:00:14]}  dxe4 {[%clk 0:00:24]} 29. Rxc5 {[%clk 0:00:09]}  exd3 {[%clk 0:00:24]} 30. Rxc8 {[%clk 0:00:09]}  Bxc8 {[%clk 0:00:24]} 31. g4 {[%clk 0:00:05]}  Bxf5 {[%clk 0:00:18]} 32. gxf5 {[%clk 0:00:05]}  Rd8 {[%clk 0:00:19]} 33. Rd1 {[%clk 0:00:05]}  Kg8 {[%clk 0:00:17]} 34. Kg2 {[%clk 0:00:05]}  Kf7 {[%clk 0:00:17]} 35. a4 {[%clk 0:00:05]}  Kf6 {[%clk 0:00:17]} 36. Kf3 {[%clk 0:00:05]}  Rd4 {[%clk 0:00:16]} 37. a5 {[%clk 0:00:03]}  Ra4 {[%clk 0:00:16]} 38. Rxd3 {[%clk 0:00:03]}  Rxa5 {[%clk 0:00:16]} 39. Rd5 {[%clk 0:00:03]}  Ra3+ {[%clk 0:00:16]} 40. Kg4 {[%clk 0:00:04]}  Ra4+ {[%clk 0:00:17]} 41. Kg3 {[%clk 0:00:04]}  Rb4 {[%clk 0:00:17]} 42. h4 {[%clk 0:00:04]}  h5 {[%clk 0:00:18]} 43. Rc5 {[%clk 0:00:04]}  Rg4+ {[%clk 0:00:12]} 44. Kh3 {[%clk 0:00:03]}  Rf4 {[%clk 0:00:12]} 45. Rc7 {[%clk 0:00:03]}  Rxf5 {[%clk 0:00:12]} 46. Rxb7 {[%clk 0:00:04]}  Rf3+ {[%clk 0:00:12]} 47. Kg2 {[%clk 0:00:04]}  Rb3 {[%clk 0:00:13]} 48. b6 {[%clk 0:00:04]}  g6 {[%clk 0:00:13]} 49. Kh2 {[%clk 0:00:04]}  Kf5 {[%clk 0:00:14]} 50. Rg7 {[%clk 0:00:03]}  Rxb6 {[%clk 0:00:12]} 51. Kg3 {[%clk 0:00:04]}  Rb3+ {[%clk 0:00:12]} 52. Kg2 {[%clk 0:00:04]}  Re3 {[%clk 0:00:12]} 53. Rg8 {[%clk 0:00:04]}  Re6 {[%clk 0:00:11]} 54. Kg3 {[%clk 0:00:04]}  Ke4 {[%clk 0:00:12]} 55. Rf8 {[%clk 0:00:04]}  Ke3 {[%clk 0:00:12]} 56. Rf3+ {[%clk 0:00:03]}  Ke2 {[%clk 0:00:12]} 57. Rf7 {[%clk 0:00:04]}  Re3+ {[%clk 0:00:11]} 58. Kg2 {[%clk 0:00:04]}  Re4 {[%clk 0:00:11]} 59. Kg3 {[%clk 0:00:04]}  Rg4+ {[%clk 0:00:11]} 60. Kh3 {[%clk 0:00:05]}  Ke3 {[%clk 0:00:12]} 61. Re7+ {[%clk 0:00:05]}  Kf3 {[%clk 0:00:11]} 62. Rf7+ {[%clk 0:00:05]}  Ke4 {[%clk 0:00:12]} 63. Re7+ {[%clk 0:00:05]}  Kf5 {[%clk 0:00:12]} 64. Rf7+ {[%clk 0:00:05]}  Ke6 {[%clk 0:00:13]} 65. Rf1 {[%clk 0:00:06]}  Re4 {[%clk 0:00:12]} 66. Kg3 {[%clk 0:00:06]}  Re3+ {[%clk 0:00:12]} 67. Kg2 {[%clk 0:00:06]}  Re5 {[%clk 0:00:12]} 68. Kg3 {[%clk 0:00:06]}  Rf5 {[%clk 0:00:13]} 69. Re1+ {[%clk 0:00:06]}  Kf6 {[%clk 0:00:13]} 70. Ra1 {[%clk 0:00:07]}  Re5 {[%clk 0:00:13]} 71. Ra6+ {[%clk 0:00:06]}  Re6 {[%clk 0:00:14]} 72. Ra5 {[%clk 0:00:06]}  Re3+ {[%clk 0:00:13]} 73. Kg2 {[%clk 0:00:06]}  Re5 {[%clk 0:00:11]} 74. Ra3 {[%clk 0:00:06]}  Kf5 {[%clk 0:00:11]} 75. Kg3 {[%clk 0:00:06]}  Rd5 {[%clk 0:00:11]} 76. Rf3+ {[%clk 0:00:06]}  Ke4 {[%clk 0:00:11]} 77. Rf6 {[%clk 0:00:06]}  Rd3+ {[%clk 0:00:11]} 78. Kg2 {[%clk 0:00:06]}  Rd2+ {[%clk 0:00:11]} 79. Kg3 {[%clk 0:00:06]}  Rd3+ {[%clk 0:00:12]} 80. Kg2 {[%clk 0:00:06]}  Rd5 {[%clk 0:00:07]} 81. Rxg6 {[%clk 0:00:05]}  Kf4 {[%clk 0:00:08]} 82. Rg5 {[%clk 0:00:03]}  Rxg5+ {[%clk 0:00:07]} 83. hxg5 {[%clk 0:00:03]}  Kxg5 {[%clk 0:00:08]} 84. Kh3 {[%clk 0:00:04]}  h4 {[%clk 0:00:08]} 85. Kh2 {[%clk 0:00:04]}  Kg4 {[%clk 0:00:08]} 86. Kg2 {[%clk 0:00:05]}  h3+ {[%clk 0:00:09]} 87. Kh2 {[%clk 0:00:06]}  Kh4 {[%clk 0:00:09]} 88. Kh1 {[%clk 0:00:07]}  Kg3 {[%clk 0:00:10]} 89. Kg1 {[%clk 0:00:08]}  h2+ {[%clk 0:00:11]} 90. Kh1 {[%clk 0:00:09]}  Kh3 {[%clk 0:00:11]} 1/2-1/2


[Site "https://www.chess.com"]

[Event "Titled Tuesday Blitz January 10 Early 2023"]
[White "Volkov, Maksim"]
[Black "Boder, Jan"]
[WhiteFideId "54123070"]
[BlackFideId "16243226"]
[WhiteElo "2258"]
[BlackElo "2294"]
[Result "1-0"]
[Round "05"]
[TimeControl "180+2"]
[Date "2023.01.10"]
[WhiteClock "0:00:26"]
[BlackClock "0:00:02"]

1. d4 {[%clk 0:03:00]}  Nf6 {[%clk 0:02:59]} 2. c4 {[%clk 0:03:01]}  c5 {[%clk 0:02:59]} 3. Nf3 {[%clk 0:03:00]}  cxd4 {[%clk 0:02:59]} 4. Nxd4 {[%clk 0:03:00]}  e5 {[%clk 0:03:00]} 5. Nf3 {[%clk 0:02:56]}  Nc6 {[%clk 0:02:58]} 6. Nc3 {[%clk 0:02:56]}  Bb4 {[%clk 0:02:57]} 7. Bd2 {[%clk 0:02:50]}  O-O {[%clk 0:02:31]} 8. e3 {[%clk 0:02:44]}  d6 {[%clk 0:02:03]} 9. a3 {[%clk 0:02:43]}  Bxc3 {[%clk 0:02:01]} 10. Bxc3 {[%clk 0:02:44]}  Be6 {[%clk 0:02:01]} 11. b3 {[%clk 0:02:33]}  Rc8 {[%clk 0:02:02]} 12. Be2 {[%clk 0:02:33]}  d5 {[%clk 0:01:50]} 13. cxd5 {[%clk 0:02:07]}  Nxd5 {[%clk 0:01:49]} 14. Bb2 {[%clk 0:02:05]}  f6 {[%clk 0:01:47]} 15. O-O {[%clk 0:02:05]}  Qd7 {[%clk 0:01:27]} 16. Nd2 {[%clk 0:02:04]}  Rfd8 {[%clk 0:01:27]} 17. Ne4 {[%clk 0:02:00]}  Na5 {[%clk 0:01:16]} 18. b4 {[%clk 0:01:54]}  Nc4 {[%clk 0:01:13]} 19. Bxc4 {[%clk 0:01:50]}  Rxc4 {[%clk 0:01:12]} 20. Nc5 {[%clk 0:01:50]}  Qc8 {[%clk 0:00:58]} 21. Qb3 {[%clk 0:01:43]}  b5 {[%clk 0:00:27]} 22. Nxe6 {[%clk 0:01:35]}  Qxe6 {[%clk 0:00:26]} 23. Rfd1 {[%clk 0:01:35]}  Rd7 {[%clk 0:00:19]} 24. Rac1 {[%clk 0:01:31]}  Nb6 {[%clk 0:00:19]} 25. h3 {[%clk 0:01:20]}  Kf7 {[%clk 0:00:16]} 26. Rb1 {[%clk 0:01:15]}  Ke7 {[%clk 0:00:16]} 27. Kh2 {[%clk 0:01:13]}  Qc6 {[%clk 0:00:14]} 28. f4 {[%clk 0:01:10]}  Rc2 {[%clk 0:00:12]} 29. Rg1 {[%clk 0:01:08]}  Rdd2 {[%clk 0:00:11]} 30. e4 {[%clk 0:01:04]}  Qxe4 {[%clk 0:00:10]} 31. Qg3 {[%clk 0:01:05]}  g6 {[%clk 0:00:08]} 32. fxe5 {[%clk 0:01:04]}  f5 {[%clk 0:00:08]} 33. Qg5+ {[%clk 0:01:01]}  Ke8 {[%clk 0:00:08]} 34. Bc3 {[%clk 0:00:54]}  Re2 {[%clk 0:00:07]} 35. Rbd1 {[%clk 0:00:53]}  Nd5 {[%clk 0:00:07]} 36. Bd2 {[%clk 0:00:43]}  Qxe5+ {[%clk 0:00:04]} 37. Kh1 {[%clk 0:00:43]}  Qe7 {[%clk 0:00:03]} 38. Qh6 {[%clk 0:00:42]}  Qe4 {[%clk 0:00:02]} 39. Qg5 {[%clk 0:00:41]}  Qe7 {[%clk 0:00:02]} 40. Qg3 {[%clk 0:00:41]}  Qe4 {[%clk 0:00:03]} 41. Bg5 {[%clk 0:00:38]}  Kf7 {[%clk 0:00:03]} 42. Rde1 {[%clk 0:00:36]}  Rxe1 {[%clk 0:00:03]} 43. Rxe1 {[%clk 0:00:36]}  Re2 {[%clk 0:00:03]} 44. Rg1 {[%clk 0:00:35]}  Rc2 {[%clk 0:00:02]} 45. Qb3 {[%clk 0:00:34]}  Rc4 {[%clk 0:00:02]} 46. Qd1 {[%clk 0:00:33]}  Rd4 {[%clk 0:00:02]} 47. Qc1 {[%clk 0:00:33]}  Rc4 {[%clk 0:00:02]} 48. Qb2 {[%clk 0:00:33]}  Qd4 {[%clk 0:00:02]} 49. Qe2 {[%clk 0:00:33]}  Qe4 {[%clk 0:00:02]} 50. Qf2 {[%clk 0:00:33]}  Rd4 {[%clk 0:00:02]} 51. Re1 {[%clk 0:00:32]}  Qd3 {[%clk 0:00:03]} 52. Kh2 {[%clk 0:00:27]}  Re4 {[%clk 0:00:03]} 53. Qxa7+ {[%clk 0:00:26]}  Kg8 {[%clk 0:00:02]} 54. Rc1 {[%clk 0:00:27]}  Rc4 {[%clk 0:00:02]} 55. Bh6 {[%clk 0:00:26]} 1-0


[Site "https://www.chess.com"]